fUSD/lending_fUSD_20260503
["ID","MTS","AMOUNT","RATE_DAILY","PERIOD"]
[421498083,1777755043000,-300.0,0.00038086,2]
[421498080,1777755043000,-308.82462178,0.00038086,2]
[421498082,1777755043000,-300.0,0.00038086,2]
[421498085,1777755043000,-3103.1729,0.00038291,2]
[421498087,1777755043000,-3103.1729,0.00038427,2]
[421498032,1777755043000,-300.0,0.00038086,2]
[421498061,1777755043000,-1064.06461869,0.00038086,2]
[421498054,1777755043000,-300.0,0.00038086,2]
[421498088,1777755043000,-3103.1729,0.00038562,2]
[421498059,1777755043000,-602.8595758,0.00038086,2]
[421498028,1777755043000,-300.0,0.00038086,2]
[421498055,1777755043000,-300.0,0.00038086,2]
[421498034,1777755043000,-891.02484561,0.00038086,2]
[421498029,1777755043000,-491.36893762,0.00038086,2]
[421498036,1777755043000,-308.82462178,0.00038086,2]
[421498031,1777755043000,-602.8595758,0.00038086,2]
[421498035,1777755043000,-1064.06461868,0.00038086,2]
[421498030,1777755043000,-300.51959305,0.00038086,2]
[421498038,1777755043000,-300.99573307,0.00038086,2]
[421498040,1777755043000,-300.0,0.00038086,2]
[421498048,1777755043000,-308.76531569,0.00038086,2]
[421498042,1777755043000,-300.0,0.00038086,2]
[421498039,1777755043000,-300.0,0.00038086,2]
[421498033,1777755043000,-526.33558584,0.00038086,2]
[421498049,1777755043000,-862.10960503,0.00038086,2]
[421498057,1777755043000,-326.87615896,0.00038086,2]
[421498058,1777755043000,-480.62819655,0.00038086,2]
[421498056,1777755043000,-309.0140843,0.00038086,2]
[421498052,1777755043000,-300.68480131,0.00038086,2]
[421498041,1777755043000,-300.0,0.00038086,2]
[421498050,1777755043000,-310.06407564,0.00038086,2]
[421498053,1777755043000,-433.48412647,0.00038086,2]
[421498047,1777755043000,-1144.08909663,0.00038086,2]
[421498046,1777755043000,-343.06188374,0.00038086,2]
[421498044,1777755043000,-1791.69485462,0.00038086,2]
[421498045,1777755043000,-585.88728205,0.00038086,2]
[421498043,1777755043000,-851.91860123,0.00038086,2]
[421498051,1777755043000,-462.62418655,0.00038086,2]
[421498125,1777755044000,-192.47,0.00041209,120]
[421498128,1777755044000,-242.22,0.00041373,120]
[421498127,1777755044000,-192.47,0.00041373,120]
[421498126,1777755044000,-151.0,0.00041318,14]
[421498116,1777755044000,-1209.6375,0.00040996,120]
[421498124,1777755044000,-1241.08604016,0.00041168,2]
[421498119,1777755044000,-2005.0791648,0.00041096,2]
[421498117,1777755044000,-1000.0,0.00040999,120]
[421498121,1777755044000,-192.47,0.00041127,120]
[421498123,1777755044000,-1000.0,0.00041161,17]
[421498131,1777755044000,-1000.0,0.00041699,117]
[421498136,1777755044000,-157.38349537,0.000419,120]
[421498129,1777755044000,-200.0,0.00041448,120]
[421498133,1777755044000,-1000.0,0.00041879,25]
[421498130,1777755044000,-6271.38077955,0.00041673,2]
[421498135,1777755044000,-157.3834955,0.000419,120]
[421498134,1777755044000,-1000.0,0.00041879,35]
[421498137,1777755044000,-157.38349537,0.000419,120]
[421498138,1777755044000,-157.38349537,0.000419,120]
[421498139,1777755044000,-157.38349537,0.000419,120]
[421498140,1777755044000,-157.38349537,0.000419,120]
[421498143,1777755044000,-157.38349537,0.000419,120]
[421498118,1777755044000,-328.03761654,0.00041095,120]
[421498144,1777755044000,-157.38349537,0.000419,120]
[421498132,1777755044000,-192.49,0.00041783,30]
[421498122,1777755044000,-151.0,0.00041137,14]
[421498103,1777755044000,-3103.1729,0.00039649,2]
[421498113,1777755044000,-889.99,0.000408,14]
[421498141,1777755044000,-157.38349537,0.000419,120]
[421498089,1777755044000,-889.99,0.000386,14]
[421498090,1777755044000,-3103.1729,0.00038698,2]
[421498100,1777755044000,-187.392583,0.00039258,32]
[421498092,1777755044000,-3103.1729,0.00038834,2]
[421498091,1777755044000,-3876.72128989,0.00038707,2]
[421498095,1777755044000,-637.139,0.00038978,2]
[421498094,1777755044000,-310.3016,0.0003897,2]
[421498093,1777755044000,-3103.1729,0.0003897,2]
[421498096,1777755044000,-3103.1729,0.00039105,2]
[421498099,1777755044000,-3103.1729,0.00039241,2]
[421498098,1777755044000,-504.0,0.0003922,15]
[421498097,1777755044000,-3323.09659263,0.0003912,2]
[421498101,1777755044000,-3103.1729,0.00039377,2]
[421498104,1777755044000,-626.48,0.000397,30]
[421498112,1777755044000,-504.0,0.0004073,16]
[421498110,1777755044000,-152.0,0.00040614,4]
[421498105,1777755044000,-626.48,0.000397,120]
[421498102,1777755044000,-3103.1729,0.00039513,2]
[421498106,1777755044000,-3103.1729,0.00039784,2]
[421498107,1777755044000,-24449.0,0.00039908,2]
[421498111,1777755044000,-3323.09659263,0.0004067,2]
[421498108,1777755044000,-3103.1741,0.0003992,2]
[421498109,1777755044000,-310.3017,0.0003992,2]
[421498114,1777755044000,-192.47,0.00040963,120]
[421498115,1777755044000,-1434.4731,0.00040996,2]
[421498142,1777755044000,-157.38349537,0.000419,120]
[421498120,1777755044000,-1000.0,0.0004111,112]
[421498156,1777755044000,-250.0,0.00042082,120]
[421498177,1777755044000,-126812.86872516,0.0004232,120]
[421498176,1777755044000,-232.30614875,0.0004232,120]
[421498178,1777755044000,-5310.9271538,0.0004232,30]
[421498175,1777755044000,-666.0,0.00042319,30]
[421498181,1777755044000,-3531.36758084,0.0004232,60]
[421498180,1777755044000,-1983.62748,0.0004232,120]
[421498182,1777755044000,-179953.73187781,0.0004232,60]
[421498183,1777755044000,-1154.61642,0.0004232,120]
[421498184,1777755044000,-335.75334376,0.0004232,14]
[421498187,1777755044000,-246.20211742,0.0004232,120]
[421498188,1777755044000,-246.20211742,0.0004232,120]
[421498190,1777755044000,-246.20211742,0.0004232,120]
[421498191,1777755044000,-246.20211742,0.0004232,120]
[421498189,1777755044000,-246.20211742,0.0004232,120]
[421498186,1777755044000,-13075.78015098,0.0004232,120]
[421498185,1777755044000,-34441.0,0.0004232,120]
[421498193,1777755044000,-246.20211742,0.0004232,120]
[421498192,1777755044000,-246.20211742,0.0004232,120]
[421498194,1777755044000,-246.20211742,0.0004232,120]
[421498198,1777755044000,-229.06,0.0004232,120]
[421498195,1777755044000,-20000.0,0.0004232,30]
[421498197,1777755044000,-19398.73364788,0.0004232,90]
[421498196,1777755044000,-13498.21044656,0.0004232,120]
[421498200,1777755044000,-70639.85349676,0.0004232,120]
[421498146,1777755044000,-157.38349537,0.000419,120]
[421498174,1777755044000,-300.0,0.00042319,30]
[421498171,1777755044000,-157.0,0.00042319,120]
[421498199,1777755044000,-195.42,0.0004232,120]
[421498173,1777755044000,-300.0,0.00042319,30]
[421498157,1777755044000,-11042.87839844,0.00042101,2]
[421498179,1777755044000,-183.12,0.0004232,120]
[421498145,1777755044000,-157.38349537,0.000419,120]
[421498147,1777755044000,-157.38349537,0.000419,120]
[421498149,1777755044000,-157.38349537,0.000419,120]
[421498153,1777755044000,-234.96895484,0.00041982,2]
[421498151,1777755044000,-157.38349537,0.000419,120]
[421498150,1777755044000,-157.38349537,0.000419,120]
[421498152,1777755044000,-11042.87839844,0.00041982,2]
[421498154,1777755044000,-18000.0,0.00042,120]
[421498155,1777755044000,-118403.43203772,0.0004202,2]
[421498158,1777755044000,-3876.72128989,0.0004222,15]
[421498148,1777755044000,-157.38349537,0.000419,120]
[421498161,1777755044000,-3323.09659263,0.0004222,2]
[421498159,1777755044000,-240.1197761,0.0004222,2]
[421498170,1777755044000,-160.0,0.00042319,120]
[421498164,1777755044000,-1000.0,0.0004224,18]
[421498172,1777755044000,-153.0,0.00042319,120]
[421498162,1777755044000,-2562.70722274,0.0004222,28]
[421498167,1777755044000,-250.0,0.00042247,120]
[421498165,1777755044000,-504.0,0.00042241,18]
[421498163,1777755044000,-197.97303143,0.00042236,2]
[421498168,1777755044000,-1000.0,0.00042258,75]
[421498160,1777755044000,-240.1197761,0.0004222,2]
[421498166,1777755044000,-250.0,0.00042247,120]
[421498169,1777755044000,-157.0,0.00042319,120]
[421498228,1777755045000,-478.62,0.0004232,30]
[421498234,1777755045000,-638.05,0.0004232,30]
[421498229,1777755045000,-568.94,0.0004232,30]
[421498227,1777755045000,-478.62,0.0004232,30]
[421498224,1777755045000,-639.22,0.0004232,30]
[421498230,1777755045000,-155.0,0.0004232,2]
[421498232,1777755045000,-393.19,0.0004232,30]
[421498231,1777755045000,-183.66,0.0004232,30]
[421498233,1777755045000,-571.19,0.0004232,30]
[421498238,1777755045000,-568.94,0.0004232,30]
[421498237,1777755045000,-571.19,0.0004232,30]
[421498235,1777755045000,-183.66,0.0004232,30]
[421498236,1777755045000,-639.22,0.0004232,30]
[421498240,1777755045000,-570.9,0.0004232,30]
[421498241,1777755045000,-478.62,0.0004232,30]
[421498243,1777755045000,-183.66,0.0004232,30]
[421498244,1777755045000,-639.22,0.0004232,30]
[421498226,1777755045000,-633.24,0.0004232,30]
[421498250,1777755045000,-639.22,0.0004232,30]
[421498239,1777755045000,-571.19,0.0004232,30]
[421498225,1777755045000,-183.66,0.0004232,30]
[421498210,1777755045000,-249.87,0.0004232,120]
[421498221,1777755045000,-257.13365525,0.0004232,120]
[421498248,1777755045000,-568.94,0.0004232,30]
[421498201,1777755045000,-11178.78008868,0.0004232,120]
[421498203,1777755045000,-248.52,0.0004232,120]
[421498202,1777755045000,-218.62,0.0004232,120]
[421498204,1777755045000,-150.0,0.0004232,120]
[421498205,1777755045000,-1710.40707833,0.0004232,120]
[421498206,1777755045000,-183.79,0.0004232,120]
[421498208,1777755045000,-174.59000785,0.0004232,120]
[421498211,1777755045000,-191.57,0.0004232,120]
[421498209,1777755045000,-333.17,0.0004232,120]
[421498207,1777755045000,-174.59000785,0.0004232,120]
[421498212,1777755045000,-639.22,0.0004232,30]
[421498214,1777755045000,-257.13365525,0.0004232,120]
[421498215,1777755045000,-257.13365525,0.0004232,120]
[421498213,1777755045000,-155.0,0.0004232,2]
[421498216,1777755045000,-257.13365525,0.0004232,120]
[421498220,1777755045000,-257.13365525,0.0004232,120]
[421498217,1777755045000,-257.13365525,0.0004232,120]
[421498218,1777755045000,-257.13365525,0.0004232,120]
[421498219,1777755045000,-257.13365525,0.0004232,120]
[421498222,1777755045000,-478.62,0.0004232,30]
[421498223,1777755045000,-393.19,0.0004232,30]
[421498242,1777755045000,-393.19,0.0004232,30]
[421498270,1777755045000,-183.66,0.0004232,30]
[421498246,1777755045000,-571.19,0.0004232,30]
[421498273,1777755045000,-568.37,0.0004232,30]
[421498284,1777755045000,-639.22,0.0004232,30]
[421498275,1777755045000,-633.41,0.0004232,30]
[421498247,1777755045000,-478.62,0.0004232,30]
[421498278,1777755045000,-571.19,0.0004232,30]
[421498281,1777755045000,-183.66,0.0004232,30]
[421498279,1777755045000,-183.56,0.0004232,30]
[421498277,1777755045000,-392.03,0.0004232,30]
[421498283,1777755045000,-392.76,0.0004232,30]
[421498274,1777755045000,-568.94,0.0004232,30]
[421498280,1777755045000,-370.2992062,0.0004232,120]
[421498285,1777755045000,-6738.50850474,0.0004232,30]
[421498287,1777755045000,-183.66,0.0004232,30]
[421498289,1777755045000,-639.22,0.0004232,30]
[421498288,1777755045000,-478.62,0.0004232,30]
[421498286,1777755045000,-4892.94612511,0.0004232,30]
[421498290,1777755045000,-393.19,0.0004232,30]
[421498293,1777755045000,-531554.75909392,0.0004232,120]
[421498292,1777755045000,-568.94,0.0004232,30]
[421498291,1777755045000,-183.66,0.0004232,30]
[421498282,1777755045000,-559.67,0.0004232,30]
[421498268,1777755045000,-571.19,0.0004232,30]
[421498276,1777755045000,-478.62,0.0004232,30]
[421498272,1777755045000,-637.27,0.0004232,30]
[421498245,1777755045000,-478.62,0.0004232,30]
[421498249,1777755045000,-568.94,0.0004232,30]
[421498252,1777755045000,-568.94,0.0004232,30]
[421498251,1777755045000,-627.14,0.0004232,30]
[421498269,1777755045000,-478.62,0.0004232,30]
[421498257,1777755045000,-478.62,0.0004232,30]
[421498255,1777755045000,-393.19,0.0004232,30]
[421498262,1777755045000,-393.19,0.0004232,30]
[421498256,1777755045000,-569.54,0.0004232,30]
[421498260,1777755045000,-568.94,0.0004232,30]
[421498261,1777755045000,-478.62,0.0004232,30]
[421498253,1777755045000,-11570.20917588,0.0004232,30]
[421498258,1777755045000,-122175.7,0.0004232,120]
[421498259,1777755045000,-81450.5,0.0004232,30]
[421498264,1777755045000,-478.36,0.0004232,30]
[421498263,1777755045000,-639.22,0.0004232,30]
[421498266,1777755045000,-478.62,0.0004232,30]
[421498265,1777755045000,-393.19,0.0004232,30]
[421498267,1777755045000,-180.66,0.0004232,30]
[421498271,1777755045000,-571.19,0.0004232,30]
[421498254,1777755045000,-7002.63692409,0.0004232,30]
[421498310,1777755046000,-6038.0,0.00026978,2]
[421498305,1777755046000,-2022.88425123,0.00023978,2]
[421498309,1777755046000,-163.15,0.00026712,2]
[421498308,1777755046000,-163.15,0.00026027,30]
[421498307,1777755046000,-163.15,0.00025342,7]
[421498294,1777755046000,-23061.91238792,0.0004232,120]
[421498298,1777755046000,-4015.11574877,0.00023978,2]
[421498295,1777755046000,-1323.12656741,0.0004232,120]
[421498296,1777755046000,-14637.31840052,0.0004232,120]
[421498311,1777755046000,-163.15,0.00027397,7]
[421498306,1777755046000,-163.15,0.00024658,2]
[421498312,1777755046000,-163.15,0.00028082,30]
[421498325,1777755046000,-4681.73822408,0.00032978,2]
[421498315,1777755046000,-163.15,0.00028767,2]
[421498324,1777755046000,-1850.34,0.00030845,10]
[421498326,1777755046000,-608.0,0.00032978,2]
[421498318,1777755046000,-163.15,0.00029112,7]
[421498321,1777755046000,-1184.73822408,0.00029978,2]
[421498319,1777755046000,-163.16,0.00029232,30]
[421498323,1777755046000,-163.16,0.00030136,30]
[421498317,1777755046000,-163.15,0.00028991,2]
[421498322,1777755046000,-4853.26177592,0.00029978,2]
[421498314,1777755046000,-163.15,0.0002875,7]
[421498316,1777755046000,-163.15,0.00028871,30]
[421498320,1777755046000,-163.15,0.00029452,7]
[421498313,1777755046000,-163.15,0.0002863,2]
[421498339,1777755061000,424.44394951,0.00029978,120]
[421498338,1777755061000,300.0,0.00029978,120]
[421498337,1777755061000,300.0,0.00025478,120]
[421498336,1777755061000,300.0,0.00026376,120]
[421498340,1777755065000,206.96224548,0.00026376,120]
[421498347,1777756046000,-168.0542214,0.0001045,2]
[421498346,1777756046000,-267.83418643,0.0001,2]
[421498349,1777756085000,210.04,0.00028665,120]
[421498348,1777756085000,210.04,0.00025798,120]
[421498350,1777756168000,-314.59890736,0.0001045,2]
[421498351,1777756174000,-1585.06122213,0.0001045,2]
[421498382,1777756232000,-943.0,0.00022561,2]
[421498388,1777756232000,-210.04,0.00022932,2]
[421498380,1777756232000,-200.0,0.00022188,2]
[421498381,1777756232000,-209.04,0.00022548,2]
[421498378,1777756232000,-6038.0,0.00021763,2]
[421498383,1777756232000,-424.97,0.00022562,2]
[421498390,1777756232000,-209.04,0.00023098,2]
[421498404,1777756232000,-151.0,0.00023964,2]
[421498392,1777756232000,-160.0,0.00023489,2]
[421498410,1777756232000,-623.0,0.00023978,2]
[421498407,1777756232000,-151.0,0.00023964,2]
[421498413,1777756232000,-1350.0,0.00023978,2]
[421498379,1777756232000,-209.04,0.00021998,2]
[421498385,1777756232000,-1805.43,0.00022562,2]
[421498377,1777756232000,-1664.0,0.00021763,2]
[421498364,1777756232000,-5000.0,0.00011,2]
[421498375,1777756232000,-492.96,0.00018856,2]
[421498361,1777756232000,-217.62068347,0.00010899,2]
[421498360,1777756232000,-2932.28564911,0.0001045,2]
[421498362,1777756232000,-1200.0,0.00010998,2]
[421498363,1777756232000,-300.0,0.00010999,2]
[421498416,1777756232000,-3533.0,0.00023978,2]
[421498366,1777756232000,-287.23190039,0.00011494,2]
[421498376,1777756232000,-2094.29,0.00018856,2]
[421498365,1777756232000,-200.8997292,0.00011,2]
[421498372,1777756232000,-259.67527453,0.00013308,2]
[421498369,1777756232000,-250.0,0.00011989,2]
[421498373,1777756232000,-2091.32472547,0.00013308,2]
[421498368,1777756232000,-250.0,0.00011494,2]
[421498374,1777756232000,-978.5391,0.000145,2]
[421498371,1777756232000,-1680.0,0.00012098,2]
[421498370,1777756232000,-500.0,0.00011989,2]
[421498401,1777756232000,-151.0,0.00023964,2]
[421498367,1777756232000,-642.28671625,0.00011494,2]
[421498394,1777756232000,-162.41759262,0.0002349,2]
[421498467,1777756232000,-560.20584165,0.00028216,2]
[421498469,1777756232000,-500.0,0.00028216,2]
[421498466,1777756232000,-614.34649429,0.00028216,2]
[421498459,1777756232000,-500.0,0.00028216,2]
[421498465,1777756232000,-202.90717816,0.00028216,2]
[421498463,1777756232000,-500.0,0.00028216,2]
[421498457,1777756232000,-1284.96,0.00028207,10]
[421498461,1777756232000,-500.0,0.00028216,2]
[421498471,1777756232000,-165.82196882,0.00028216,2]
[421498472,1777756232000,-500.0,0.00028216,2]
[421498473,1777756232000,-500.0,0.00028216,2]
[421498475,1777756232000,-500.0,0.00028216,2]
[421498474,1777756232000,-500.0,0.00028216,2]
[421498399,1777756232000,-209.04,0.00023648,2]
[421498470,1777756232000,-500.0,0.00028216,2]
[421498468,1777756232000,-500.0,0.00028216,2]
[421498476,1777756232000,-500.0,0.00028216,2]
[421498453,1777756232000,-7117.9968,0.00028117,2]
[421498396,1777756232000,-1497.98,0.0002357,2]
[421498419,1777756232000,-1263.608,0.00023978,2]
[421498455,1777756232000,-2500.0,0.00028117,2]
[421498425,1777756232000,-1000.0,0.00024658,2]
[421498438,1777756232000,-217.62068346,0.00025595,2]
[421498429,1777756232000,-1664.0,0.00024763,2]
[421498439,1777756232000,-18929.3449156,0.00025685,2]
[421498422,1777756232000,-209.04,0.00024198,2]
[421498441,1777756232000,-2000.0,0.00025694,2]
[421498444,1777756232000,-2000.0,0.0002688,2]
[421498447,1777756232000,-826.0,0.0002767,10]
[421498435,1777756232000,-163.08,0.00025489,2]
[421498445,1777756232000,-506.0,0.00027137,2]
[421498451,1777756232000,-1212.0,0.00027763,2]
[421498433,1777756232000,-3517.668,0.00024763,2]
[421498488,1777756233000,-500.0,0.00028216,2]
[421498486,1777756233000,-500.0,0.00028216,2]
[421498483,1777756233000,-500.0,0.00028216,2]
[421498480,1777756233000,-500.0,0.00028216,2]
[421498479,1777756233000,-500.0,0.00028216,2]
[421498484,1777756233000,-500.0,0.00028216,2]
[421498478,1777756233000,-500.0,0.00028216,2]
[421498477,1777756233000,-500.0,0.00028216,2]
[421498485,1777756233000,-500.0,0.00028216,2]
[421498497,1777756233000,-500.0,0.00028216,2]
[421498482,1777756233000,-500.0,0.00028216,2]
[421498489,1777756233000,-500.0,0.00028216,2]
[421498481,1777756233000,-183.45987946,0.00028216,2]
[421498496,1777756233000,-500.0,0.00028216,2]
[421498490,1777756233000,-500.0,0.00028216,2]
[421498491,1777756233000,-500.0,0.00028216,2]
[421498494,1777756233000,-500.0,0.00028216,2]
[421498487,1777756233000,-500.0,0.00028216,2]
[421498492,1777756233000,-500.0,0.00028216,2]
[421498493,1777756233000,-500.0,0.00028216,2]
[421498498,1777756233000,-225.45302913,0.00028216,2]
[421498502,1777756233000,-30737.95182334,0.00028217,2]
[421498500,1777756233000,-500.0,0.00028216,2]
[421498499,1777756233000,-273.04125671,0.00028216,2]
[421498501,1777756233000,-506.05322325,0.00028216,2]
[421498495,1777756233000,-500.0,0.00028216,2]
[421498507,1777756238000,-54950.44204389,0.00028217,2]
[421498510,1777756238000,-24000.38152237,0.00028217,2]
[421498509,1777756238000,-2050.45774159,0.00028217,2]
[421498508,1777756238000,-2149.54225841,0.00028217,2]
[421498512,1777756240000,-884.89287904,0.00028217,2]
[421498555,1777756241000,-1986.32,0.00037001,2]
[421498558,1777756241000,-3371.4880094,0.00037831,2]
[421498556,1777756241000,-12517.41152513,0.00037731,2]
[421498565,1777756241000,-150.0,0.00037899,7]
[421498560,1777756241000,-51355.0031808,0.00037831,2]
[421498563,1777756241000,-150.0,0.00037899,7]
[421498559,1777756241000,-24226.7688684,0.00037831,2]
[421498577,1777756241000,-300.0,0.00038083,2]
[421498562,1777756241000,-150.0,0.00037899,7]
[421498561,1777756241000,-150.0,0.00037899,120]
[421498567,1777756241000,-150.0,0.00037899,7]
[421498569,1777756241000,-254.98,0.00038034,30]
[421498566,1777756241000,-150.0,0.00037899,7]
[421498568,1777756241000,-150.0,0.00038026,7]
[421498570,1777756241000,-1083.25,0.00038034,30]
[421498554,1777756241000,-506.0,0.00036251,12]
[421498564,1777756241000,-150.0,0.00037899,7]
[421498557,1777756241000,-302.452285,0.00037831,2]
[421498546,1777756241000,-150.0,0.00033,14]
[421498550,1777756241000,-506.0,0.00034428,10]
[421498571,1777756241000,-506.0,0.00038074,14]
[421498537,1777756241000,-620.0,0.00028217,10]
[421498536,1777756241000,-84584.19863136,0.00028217,2]
[421498542,1777756241000,-202.85591,0.00031,5]
[421498539,1777756241000,-506.0,0.0002896,4]
[421498538,1777756241000,-460.0,0.0002849,2]
[421498540,1777756241000,-150.0,0.00029534,2]
[421498551,1777756241000,-1688.681,0.00034699,39]
[421498541,1777756241000,-506.0,0.00030783,6]
[421498543,1777756241000,-210.04,0.00031531,120]
[421498547,1777756241000,-704.0,0.000331,2]
[421498553,1777756241000,-4568.82,0.00034861,2]
[421498549,1777756241000,-1541.95,0.00034418,10]
[421498548,1777756241000,-210.04,0.00034398,120]
[421498544,1777756241000,-506.0,0.00032606,8]
[421498552,1777756241000,-176.441,0.00034699,39]
[421498545,1777756241000,-1497.98,0.00032999,2]
[421498575,1777756241000,-300.00000001,0.00038083,2]
[421498591,1777756241000,-150.0,0.00038834,7]
[421498573,1777756241000,-300.0,0.00038083,2]
[421498600,1777756241000,-150.0,0.00039302,7]
[421498603,1777756241000,-150.0,0.00039557,7]
[421498604,1777756241000,-150.0,0.00039685,7]
[421498599,1777756241000,-150.0,0.00039302,7]
[421498601,1777756241000,-150.0,0.00039302,7]
[421498597,1777756241000,-150.0,0.00039302,120]
[421498593,1777756241000,-150.0,0.00039047,7]
[421498602,1777756241000,-150.0,0.0003943,7]
[421498598,1777756241000,-150.0,0.00039302,7]
[421498606,1777756241000,-150.0,0.0003977,7]
[421498607,1777756241000,-1879.21291156,0.00039797,15]
[421498605,1777756241000,-12517.41152511,0.00039725,2]
[421498609,1777756241000,-155.57864443,0.0003987,2]
[421498610,1777756241000,-213881.02171374,0.0003988,2]
[421498612,1777756241000,-578.02784794,0.0003988,2]
[421498594,1777756241000,-150.0,0.00039175,7]
[421498595,1777756241000,-152.0,0.00039196,30]
[421498608,1777756241000,-150.0,0.00039813,7]
[421498592,1777756241000,-150.0,0.00038919,7]
[421498596,1777756241000,-12517.41152511,0.00039226,2]
[421498578,1777756241000,-602.8595758,0.00038083,2]
[421498574,1777756241000,-300.0,0.00038083,2]
[421498576,1777756241000,-308.82462178,0.00038083,2]
[421498579,1777756241000,-300.0,0.00038083,2]
[421498582,1777756241000,-12517.41152511,0.00038229,2]
[421498581,1777756241000,-150.0,0.00038154,7]
[421498580,1777756241000,-300.0,0.00038083,2]
[421498572,1777756241000,-862.10960503,0.00038083,2]
[421498584,1777756241000,-150.0,0.00038367,7]
[421498583,1777756241000,-150.0,0.00038281,7]
[421498611,1777756241000,-902.65302674,0.0003988,2]
[421498587,1777756241000,-150.0,0.000386,7]
[421498585,1777756241000,-150.0,0.00038409,7]
[421498586,1777756241000,-150.0,0.00038537,7]
[421498590,1777756241000,-150.0,0.00038792,7]
[421498589,1777756241000,-12517.41152511,0.00038728,2]
[421498588,1777756241000,-150.0,0.00038664,7]
[421498638,1777756246000,-402.07193029,0.0003987,10]
[421498636,1777756246000,-290.0373289,0.00021763,2]
[421498637,1777756246000,-125.9626711,0.00021763,2]
[421498641,1777756246000,-304351.62302879,0.0003988,2]
[421498644,1777756246000,-3000.00000576,0.0003988,2]
[421498643,1777756246000,-4192.81052465,0.0003988,2]
[421498639,1777756246000,-553.16806971,0.0003987,10]
[421498671,1777756262000,300.0,0.00023939,120]
[421498673,1777757190000,-164.79561381,0.00011,2]
[421498689,1777757431000,-267.83418643,0.0001,2]
[421498690,1777757431000,-216.66581357,0.000105,2]
[421498691,1777757431000,-33.33418643,0.000105,2]
[421498693,1777757431000,-300.0,0.00010681,2]
[421498703,1777757431000,-2211.53797519,0.00012,2]
[421498692,1777757431000,-1200.0,0.00010681,2]
[421498694,1777757431000,-300.0,0.00010681,2]
[421498695,1777757431000,-47778.23197687,0.00010682,2]
[421498698,1777757431000,-250.0,0.00011,2]
[421498696,1777757431000,-317.85751495,0.00011,2]
[421498697,1777757431000,-250.0,0.00011,2]
[421498700,1777757431000,-480.0,0.00011749,2]
[421498702,1777757431000,-5321.28870779,0.00012,2]
[421498704,1777757431000,-380.0,0.00012,2]
[421498699,1777757431000,-420.0,0.00011741,2]
[421498701,1777757431000,-191543.32958785,0.00012,2]
[421498722,1777757437000,-3123.75116919,0.00012,2]
[421498751,1777757440000,-252.48793703,0.00012,2]
[421498763,1777757442000,-505.25838035,0.00012,2]
[421498764,1777757443000,-18.31062376,0.00012,2]
[421498773,1777757734000,-150.0,0.00010699,2]
[421498774,1777757783000,-300.0,0.00010698,2]
[421498780,1777758555000,-1885.57,0.00010674,2]
[421498779,1777758555000,-210.3800907,0.00010592,2]
[421498781,1777758555000,-525.75501232,0.0001069,2]
[421498791,1777758631000,-542.50938,0.0001069,2]
[421498794,1777758631000,-250.0,0.00010692,2]
[421498792,1777758631000,-2672.14504293,0.0001069,2]
[421498793,1777758631000,-500.0,0.00010692,2]
[421498795,1777758631000,-261.0,0.00010693,2]
[421498796,1777758631000,-1200.0,0.00010693,2]
[421498799,1777758631000,-151.0,0.00010695,2]
[421498798,1777758631000,-300.0,0.00010694,2]
[421498800,1777758631000,-151.0,0.00010695,2]
[421498802,1777758631000,-151.0,0.00010695,2]